[Event "Swedish Chess Championship 2019: Weekend 1"]
[Site "Stiga Sports Arena, Arenatorget 1, Eskilstuna, Sweden"]
[Date "2019.07.07"]
[Round "4.1"]
[White "Westerberg, Jonathan"]
[Black "Nordebrink, Johan"]
[Result "1-0"]
[TimeControl "90 minutes + 30 seconds per move from move one"]
[WhiteTitle "IM"]
[WhiteFideId "1701754"]
[BlackFideId "1706721"]
[WhiteElo "2546"]
[BlackElo "2109"]

1. e4 {[%clk 01:30:26]} {[%emt 00:00:33]} c5 {[%clk 01:30:45]} {[%emt
00:00:15]} 2. Nf3 {[%clk 01:30:50]} {[%emt 00:00:06]} a6 {[%clk 01:30:53]}
{[%emt 00:00:22]} 3. c3 {[%clk 01:31:17]} {[%emt 00:00:04]} d5 {[%clk
01:30:23]} {[%emt 00:00:59]} 4. exd5 {[%clk 01:31:42]} {[%emt 00:00:05]} Qxd5
{[%clk 01:30:47]} {[%emt 00:00:06]} 5. d4 {[%clk 01:32:06]} {[%emt 00:00:05]}
Nf6 {[%clk 01:30:09]} {[%emt 00:01:09]} 6. Be2 {[%clk 01:30:36]} {[%emt
00:02:00]} cxd4 {[%clk 01:29:16]} {[%emt 00:01:24]} 7. cxd4 {[%clk 01:30:48]}
{[%emt 00:00:17]} e6 {[%clk 01:28:47]} {[%emt 00:00:59]} 8. O-O {[%clk
01:30:06]} {[%emt 00:01:11]} Be7 {[%clk 01:28:41]} {[%emt 00:00:37]} 9. Nc3
{[%clk 01:25:53]} {[%emt 00:04:43]} Qd6 {[%clk 01:27:32]} {[%emt 00:01:39]} 10.
Ne5 {[%clk 01:25:31]} {[%emt 00:00:51]} Nd5 {[%clk 01:11:06]} {[%emt 00:16:56]}
11. Nxd5 {[%clk 01:24:01]} {[%emt 00:02:00]} exd5 {[%clk 01:05:55]} {[%emt
00:05:41]} 12. Bf4 {[%clk 01:24:23]} {[%emt 00:00:08]} O-O {[%clk 00:58:13]}
{[%emt 00:08:13]} 13. Bd3 {[%clk 01:09:07]} {[%emt 00:15:45]} Qf6 {[%clk
00:50:52]} {[%emt 00:07:51]} 14. Qh5 {[%clk 01:03:42]} {[%emt 00:05:54]} h6
{[%clk 00:46:36]} {[%emt 00:04:48]} 15. Be3 {[%clk 01:02:15]} {[%emt 00:01:56]}
Nc6 {[%clk 00:40:10]} {[%emt 00:06:56]} 16. f4 {[%clk 01:01:48]} {[%emt
00:00:57]} Nxe5 {[%clk 00:35:27]} {[%emt 00:05:14]} 17. fxe5 {[%clk 01:02:07]}
{[%emt 00:00:11]} Qh4 {[%clk 00:35:46]} {[%emt 00:00:10]} 18. Qe2 {[%clk
01:01:14]} {[%emt 00:01:23]} Bg5 {[%clk 00:28:27]} {[%emt 00:07:50]} 19. Rac1
{[%clk 01:00:06]} {[%emt 00:01:38]} Bg4 {[%clk 00:26:20]} {[%emt 00:02:37]} 20.
Qd2 {[%clk 01:00:31]} {[%emt 00:00:05]} Bxe3+ {[%clk 00:26:16]} {[%emt
00:00:34]} 21. Qxe3 {[%clk 01:00:59]} {[%emt 00:00:02]} Rac8 {[%clk 00:25:31]}
{[%emt 00:01:14]} 22. Qf4 {[%clk 00:56:45]} {[%emt 00:04:45]} Qg5 {[%clk
00:16:02]} {[%emt 00:09:58]} 23. Qxg5 {[%clk 00:55:11]} {[%emt 00:02:05]} hxg5
{[%clk 00:16:20]} {[%emt 00:00:11]} 24. Kf2 {[%clk 00:54:24]} {[%emt 00:01:17]}
Rxc1 {[%clk 00:16:28]} {[%emt 00:00:22]} 25. Rxc1 {[%clk 00:54:53]} {[%emt
00:00:01]} Rc8 {[%clk 00:16:51]} {[%emt 00:00:07]} 26. Rc5 {[%clk 00:54:04]}
{[%emt 00:01:18]} Be6 {[%clk 00:13:48]} {[%emt 00:03:33]} 27. b4 {[%clk
00:52:11]} {[%emt 00:02:22]} b6 {[%clk 00:13:27]} {[%emt 00:00:51]} 28. Rxc8+
{[%clk 00:51:43]} {[%emt 00:00:58]} Bxc8 {[%clk 00:13:52]} {[%emt 00:00:06]} 29.
Kg3 {[%clk 00:58:21]} {[%emt 00:00:32]} Kf8 {[%clk 00:13:16]} {[%emt 00:01:05]}
30. h4 {[%clk 00:51:35]} {[%emt 00:00:36]} gxh4+ {[%clk 00:13:26]} {[%emt
00:00:21]} 31. Kxh4 {[%clk 00:52:03]} {[%emt 00:00:01]} Ke7 {[%clk 00:13:47]}
{[%emt 00:00:10]} 32. Kg5 {[%clk 00:52:23]} {[%emt 00:00:10]} Bb7 {[%clk
00:10:50]} {[%emt 00:03:27]} 33. Bf5 {[%clk 00:51:34]} {[%emt 00:01:19]} Bc6
{[%clk 00:09:35]} {[%emt 00:01:45]} 34. Bc8 {[%clk 00:51:18]} {[%emt 00:00:45]}
a5 {[%clk 00:09:17]} {[%emt 00:00:49]} 35. a3 {[%clk 00:51:19]} {[%emt
00:00:28]} axb4 {[%clk 00:08:54]} {[%emt 00:00:53]} 36. axb4 {[%clk 00:51:48]}
{[%emt 00:00:01]} Bb5 {[%clk 00:09:14]} {[%emt 00:00:10]} 37. g3 {[%clk
00:50:59]} {[%emt 00:01:19]} Bc6 {[%clk 00:08:48]} {[%emt 00:00:56]} 38. Ba6
{[%clk 00:47:59]} {[%emt 00:03:30]} Bd7 {[%clk 00:08:59]} {[%emt 00:00:19]} 39.
Bb7 {[%clk 00:48:19]} {[%emt 00:00:10]} Ke6 {[%clk 00:09:01]} {[%emt 00:00:28]}
40. g4 {[%clk 00:48:02]} {[%emt 00:00:47]} Bb5 {[%clk 00:09:14]} {[%emt
00:00:17]} 41. Bc8+ {[%clk 00:48:13]} {[%emt 00:00:19]} Ke7 {[%clk 00:09:39]}
{[%emt 00:00:06]} 42. Bf5 {[%clk 00:46:50]} {[%emt 00:01:53]} Be8 {[%clk
00:09:43]} {[%emt 00:00:26]} 43. Kf4 {[%clk 00:46:44]} {[%emt 00:00:35]} Bb5
{[%clk 00:10:01]} {[%emt 00:00:12]} 44. g5 {[%clk 00:45:26]} {[%emt 00:01:49]}
Be8 {[%clk 00:04:27]} {[%emt 00:06:03]} 45. Bc8 {[%clk 00:44:09]} {[%emt
00:01:48]} Bb5 {[%clk 00:04:40]} {[%emt 00:00:17]} 46. Bb7 {[%clk 00:43:00]}
{[%emt 00:01:39]} Ke6 {[%clk 00:05:05]} {[%emt 00:00:05]} 47. g6 {[%clk
00:42:29]} {[%emt 00:01:01]} Be8 {[%clk 00:01:58]} {[%emt 00:03:37]} 48. Bc8+
{[%clk 00:42:40]} {[%emt 00:00:19]} Ke7 {[%clk 00:02:23]} {[%emt 00:00:05]} 49.
Kg5 {[%clk 00:42:12]} {[%emt 00:00:58]} Bb5 {[%clk 00:02:10]} {[%emt 00:00:43]}
50. Bf5 {[%clk 00:42:17]} {[%emt 00:00:25]} Bc6 {[%clk 00:02:00]} {[%emt
00:00:41]} 51. Bg4 {[%clk 00:42:41]} {[%emt 00:00:05]} Be8 {[%clk 00:01:09]}
{[%emt 00:01:21]} 52. Bh5 {[%clk 00:42:54]} {[%emt 00:00:16]} Ke6 {[%clk
00:01:16]} {[%emt 00:00:23]} 53. gxf7 {[%clk 00:43:02]} {[%emt 00:00:22]} Bxf7
{[%clk 00:01:42]} {[%emt 00:00:05]} 54. Bxf7+ {[%clk 00:41:37]} {[%emt
00:01:55]} Kxf7 {[%clk 00:02:06]} {[%emt 00:00:05]} 55. b5 {[%clk 00:42:04]}
{[%emt 00:00:03]} 1-0

[Event "Swedish Chess Championship 2019: Weekend 1"]
[Site "Stiga Sports Arena, Arenatorget 1, Eskilstuna, Sweden"]
[Date "2019.07.07"]
[Round "4.2"]
[White "Wallgren, Ulf"]
[Black "Mardell, Jonas"]
[Result "0-1"]
[TimeControl "90 minutes + 30 seconds per move from move one"]
[WhiteFideId "1706527"]
[BlackFideId "1705636"]
[WhiteElo "2013"]
[BlackElo "2024"]

1. e4 {[%clk 01:30:59]} c5 {[%clk 01:29:55]} {[%emt 00:00:56]} 2. Nf3 {[%clk
01:31:26]} {[%emt 00:00:12]} d6 {[%clk 01:30:19]} {[%emt 00:00:06]} 3. c3
{[%clk 01:31:44]} {[%emt 00:00:12]} Nf6 {[%clk 01:29:41]} {[%emt 00:01:08]} 4.
Be2 {[%clk 01:32:03]} {[%emt 00:00:11]} Nc6 {[%clk 01:28:12]} {[%emt 00:01:59]}
5. d4 {[%clk 01:32:17]} {[%emt 00:00:15]} cxd4 {[%clk 01:26:27]} {[%emt
00:02:16]} 6. cxd4 {[%clk 01:32:38]} {[%emt 00:00:08]} Nxe4 {[%clk 01:22:10]}
{[%emt 00:04:47]} 7. d5 {[%clk 01:32:52]} {[%emt 00:00:16]} Qa5+ {[%clk
01:22:33]} {[%emt 00:00:08]} 8. Nc3 {[%clk 01:32:58]} {[%emt 00:00:24]} Nxc3
{[%clk 01:22:55]} {[%emt 00:00:08]} 9. bxc3 {[%clk 01:33:17]} {[%emt 00:00:11]}
Ne5 {[%clk 01:23:15]} {[%emt 00:00:10]} 10. Nxe5 {[%clk 01:33:18]} {[%emt
00:00:29]} Qxc3+ {[%clk 01:23:31]} {[%emt 00:00:12]} 11. Bd2 {[%clk 01:33:36]}
{[%emt 00:00:13]} Qxe5 {[%clk 01:23:54]} {[%emt 00:00:07]} 12. O-O {[%clk
01:33:42]} {[%emt 00:00:25]} f6 {[%clk 01:18:40]} {[%emt 00:05:44]} 13. Re1
{[%clk 01:20:48]} {[%emt 00:13:24]} Qxd5 {[%clk 01:11:37]} {[%emt 00:07:33]} 14.
Bf3 {[%clk 01:09:56]} {[%emt 00:11:21]} Qb5 {[%clk 01:08:48]} {[%emt 00:03:18]}
15. Rb1 {[%clk 01:02:17]} {[%emt 00:08:10]} Qd7 {[%clk 01:06:26]} {[%emt
00:02:53]} 16. Ba5 {[%clk 00:37:42]} {[%emt 00:25:04]} e5 {[%clk 00:51:34]}
{[%emt 00:15:22]} 17. Qb3 {[%clk 00:15:08]} {[%emt 00:23:05]} Be7 {[%clk
00:41:57]} {[%emt 00:10:07]} 18. Red1 {[%clk 00:11:59]} {[%emt 00:03:39]} Bd8
{[%clk 00:24:12]} {[%emt 00:18:16]} 19. Bxd8 {[%clk 00:08:35]} {[%emt
00:03:54]} Qxd8 {[%clk 00:23:03]} {[%emt 00:01:38]} 20. Bxb7 {[%clk 00:04:07]}
{[%emt 00:04:59]} Bxb7 {[%clk 00:21:34]} {[%emt 00:01:59]} 21. Qxb7 {[%clk
00:03:03]} {[%emt 00:01:33]} O-O {[%clk 00:21:52]} {[%emt 00:00:12]} 22. Qd5+
{[%clk 00:02:39]} {[%emt 00:00:53]} Kh8 {[%clk 00:22:16]} {[%emt 00:00:06]} 23.
Qxd6 {[%clk 00:03:01]} {[%emt 00:00:09]} Qxd6 {[%clk 00:22:11]} {[%emt
00:00:35]} 24. Rxd6 {[%clk 00:03:30]} {[%emt 00:00:02]} Rfd8 {[%clk 00:18:06]}
{[%emt 00:04:34]} 25. Ra6 {[%clk 00:03:32]} {[%emt 00:00:28]} Rab8 {[%clk
00:16:46]} {[%emt 00:01:49]} 26. Rc1 {[%clk 00:03:09]} {[%emt 00:00:53]} Rd7
{[%clk 00:15:43]} {[%emt 00:01:33]} 27. g3 {[%clk 00:03:06]} {[%emt 00:00:33]}
h6 {[%clk 00:14:15]} {[%emt 00:01:58]} 28. Rc2 {[%clk 00:02:52]} {[%emt
00:00:45]} Kh7 {[%clk 00:13:14]} {[%emt 00:01:30]} 29. Kg2 {[%clk 00:02:01]}
{[%emt 00:01:21]} e4 {[%clk 00:10:09]} {[%emt 00:03:48]} 30. Rc4 {[%clk
00:01:41]} {[%emt 00:00:36]} Re7 {[%clk 00:08:53]} {[%emt 00:01:46]} 31. Rca4
{[%clk 00:00:53]} {[%emt 00:01:18]} Rbb7 {[%clk 00:04:36]} {[%emt 00:26:13]} 32.
h4 {[%clk 00:01:09]} h5 {[%clk 00:04:29]} 33. Ra3 {[%clk 00:00:45]} Kg6 {[%clk
00:03:53]} 34. R3a5 {[%clk 00:00:40]} e3 {[%clk 00:02:56]} 35. fxe3 Rxe3 {[%clk
00:03:19]} 36. Rg5+ {[%clk 00:00:52]} Kf7 {[%clk 00:03:36]} 37. Rf5 {[%clk
00:01:20]} Rc7 {[%clk 00:03:08]} 38. Rxh5 {[%clk 00:01:06]} Rc2+ {[%clk
00:01:57]} 39. Kh3 {[%clk 00:01:35]} Rcc3 {[%clk 00:02:16]} 40. Rxa7+ {[%clk
00:01:44]} Kg6 {[%clk 00:02:40]} 41. Rh8 {[%clk 00:01:46]} Rxg3+ {[%clk
00:03:03]} 42. Kh2 {[%clk 00:02:14]} Rh3+ {[%clk 00:01:42]} 43. Kg2 {[%clk
00:02:31]} Rcg3+ {[%clk 00:01:59]} 44. Kf2 {[%clk 00:02:53]} Rg4 {[%clk
00:02:03]} 45. Rd8 {[%clk 00:02:02]} Rhxh4 {[%clk 00:02:11]} 46. Rdd7 {[%clk
00:02:14]} Kh6 {[%clk 00:01:57]} 47. a4 {[%clk 00:01:57]} g6 {[%clk 00:01:52]}
48. a5 {[%clk 00:01:29]} Rd4 {[%clk 00:01:27]} 49. Rf7 {[%clk 00:01:02]} Kg5
{[%clk 00:01:22]} 50. Rab7 {[%clk 00:01:08]} {[%emt 00:00:04]} Ra4 {[%clk
00:01:34]} {[%emt 00:00:18]} 51. Rb6 {[%clk 00:00:56]} {[%emt 00:00:42]} Rhf4+
{[%clk 00:01:53]} {[%emt 00:00:10]} 52. Kg3 {[%clk 00:00:46]} {[%emt 00:00:41]}
Ra3+ {[%clk 00:02:16]} {[%emt 00:00:07]} 53. Kg2 {[%clk 00:01:13]} {[%emt
00:00:03]} Rxa5 {[%clk 00:02:36]} {[%emt 00:00:10]} 54. Rb3 {[%clk 00:01:24]}
{[%emt 00:00:18]} Raf5 {[%clk 00:02:36]} {[%emt 00:00:31]} 55. Rg7 {[%clk
00:01:09]} {[%emt 00:00:45]} Rg4+ {[%clk 00:02:48]} {[%emt 00:00:18]} 56. Kh3
{[%clk 00:01:24]} {[%emt 00:00:14]} Rh4+ {[%clk 00:01:58]} {[%emt 00:01:21]} 57.
Kg3 {[%clk 00:01:53]} {[%emt 00:00:02]} Rff4 {[%clk 00:00:52]} {[%emt
00:01:36]} 58. Rb5+ {[%clk 00:02:13]} {[%emt 00:00:10]} f5 {[%clk 00:01:04]}
{[%emt 00:00:17]} 59. Rb6 {[%clk 00:02:17]} {[%emt 00:00:26]} Rhg4+ {[%clk
00:01:28]} {[%emt 00:00:05]} 60. Kh3 {[%clk 00:02:33]} {[%emt 00:00:14]} Rf3+
{[%clk 00:01:48]} {[%emt 00:00:09]} 61. Kh2 {[%clk 00:03:00]} {[%emt 00:00:04]}
Kh6 {[%clk 00:01:16]} {[%emt 00:01:01]} 62. Rg8 {[%clk 00:02:53]} {[%emt
00:00:38]} Re3 {[%clk 00:01:01]} {[%emt 00:00:44]} 63. Rf8 {[%clk 00:02:53]}
{[%emt 00:00:30]} Kg5 {[%clk 00:01:07]} {[%emt 00:00:23]} 64. Rg8 {[%clk
00:03:02]} {[%emt 00:00:22]} Rh4+ {[%clk 00:00:48]} {[%emt 00:00:50]} 65. Kg2
{[%clk 00:03:27]} {[%emt 00:00:06]} Rh6 {[%clk 00:01:07]} {[%emt 00:00:11]} 66.
Ra6 {[%clk 00:03:39]} {[%emt 00:00:18]} f4 {[%clk 00:01:04]} {[%emt 00:00:32]}
67. Rb6 {[%clk 00:03:44]} {[%emt 00:00:25]} Rg3+ {[%clk 00:01:05]} {[%emt
00:00:28]} 68. Kf2 {[%clk 00:03:54]} {[%emt 00:00:20]} Ra3 {[%clk 00:00:47]}
{[%emt 00:00:49]} 69. Rd6 {[%clk 00:03:58]} {[%emt 00:00:27]} Ra2+ {[%clk
00:01:01]} {[%emt 00:00:16]} 70. Kf3 {[%clk 00:04:04]} {[%emt 00:00:23]} Rh3+
{[%clk 00:01:25]} {[%emt 00:00:06]} 71. Ke4 {[%clk 00:04:24]} {[%emt 00:00:10]}
Re3+ {[%clk 00:01:50]} {[%emt 00:00:04]} 0-1

[Event "Swedish Chess Championship 2019: Weekend 1"]
[Site "Stiga Sports Arena, Arenatorget 1, Eskilstuna, Sweden"]
[Date "2019.07.07"]
[Round "4.3"]
[White "Jakenberg, Jussi"]
[Black "Andric, Jelena"]
[Result "1-0"]
[TimeControl "90 minutes + 30 seconds per move from move one"]
[BlackTitle "WFM"]
[WhiteFideId "1710931"]
[BlackFideId "919853"]
[WhiteElo "2099"]
[BlackElo "2099"]

1. e4 {[%clk 01:30:56]} {[%emt 00:00:03]} e6 {[%clk 01:30:49]} {[%emt
00:00:12]} 2. d4 {[%clk 01:31:23]} {[%emt 00:00:02]} c5 {[%clk 01:31:06]}
{[%emt 00:00:13]} 3. c3 {[%clk 01:31:21]} {[%emt 00:00:32]} b6 {[%clk
01:30:32]} {[%emt 00:01:05]} 4. Nf3 {[%clk 01:30:40]} {[%emt 00:01:11]} Bb7
{[%clk 01:29:58]} {[%emt 00:01:04]} 5. Bd3 {[%clk 01:30:19]} {[%emt 00:00:50]}
g6 {[%clk 01:16:45]} {[%emt 00:13:44]} 6. O-O {[%clk 01:25:43]} {[%emt
00:05:06]} Bg7 {[%clk 01:16:20]} {[%emt 00:00:54]} 7. Bg5 {[%clk 01:19:29]}
{[%emt 00:06:43]} f6 {[%clk 01:08:55]} {[%emt 00:07:55]} 8. Be3 {[%clk
01:16:33]} {[%emt 00:03:26]} d6 {[%clk 00:52:08]} {[%emt 00:17:17]} 9. Qb3
{[%clk 01:00:49]} {[%emt 00:16:14]} Qc8 {[%clk 00:41:53]} {[%emt 00:10:45]} 10.
Bc4 {[%clk 00:56:12]} {[%emt 00:05:08]} Ke7 {[%clk 00:39:27]} {[%emt 00:02:56]}
11. dxc5 {[%clk 00:41:43]} {[%emt 00:14:59]} bxc5 {[%clk 00:32:22]} {[%emt
00:07:35]} 12. Bxe6 {[%clk 00:40:06]} {[%emt 00:02:06]} Nd7 {[%clk 00:32:27]}
{[%emt 00:00:25]} 13. Bh3 {[%clk 00:33:03]} {[%emt 00:07:33]} c4 {[%clk
00:30:23]} {[%emt 00:02:34]} 14. Qc2 {[%clk 00:33:03]} {[%emt 00:00:30]} Qc6
{[%clk 00:21:34]} {[%emt 00:09:18]} 15. Nbd2 {[%clk 00:33:23]} {[%emt
00:00:11]} Nc5 {[%clk 00:17:01]} {[%emt 00:05:04]} 16. Nd4 {[%clk 00:28:03]}
{[%emt 00:05:49]} Qe8 {[%clk 00:15:48]} {[%emt 00:01:43]} 17. Nxc4 {[%clk
00:19:39]} {[%emt 00:08:55]} Bxe4 {[%clk 00:15:09]} {[%emt 00:01:09]} 18. Qd2
{[%clk 00:19:46]} {[%emt 00:00:21]} Rd8 {[%clk 00:11:13]} {[%emt 00:04:26]} 19.
b4 {[%clk 00:15:52]} {[%emt 00:04:24]} f5 {[%clk 00:06:40]} {[%emt 00:05:04]}
20. Nxd6 {[%clk 00:07:55]} {[%emt 00:08:27]} Rxd6 {[%clk 00:06:53]} {[%emt
00:00:17]} 21. bxc5 {[%clk 00:08:24]} Ra6 {[%clk 00:03:51]} {[%emt 00:03:32]}
22. f3 {[%clk 00:06:02]} {[%emt 00:02:52]} Ba8 {[%clk 00:04:03]} {[%emt
00:00:18]} 23. Qe2 {[%clk 00:03:54]} {[%emt 00:02:38]} Bxd4 {[%clk 00:02:42]}
{[%emt 00:02:33]} 24. Bxd4+ {[%clk 00:03:35]} {[%emt 00:00:07]} Re6 {[%clk
00:02:56]} {[%emt 00:00:17]} 25. Qc4 {[%clk 00:02:41]} {[%emt 00:01:23]} Nf6
{[%clk 00:02:59]} {[%emt 00:00:27]} 26. Rfe1 {[%clk 00:02:57]} {[%emt
00:00:13]} Bd5 {[%clk 00:03:13]} {[%emt 00:00:17]} 27. Rxe6+ {[%clk 00:03:18]}
{[%emt 00:00:09]} Bxe6 {[%clk 00:02:53]} {[%emt 00:00:50]} 28. Re1 {[%clk
00:03:12]} {[%emt 00:00:35]} Kf7 {[%clk 00:02:19]} {[%emt 00:25:34]} 29. Qa6
{[%clk 00:03:03]} Qd7 {[%clk 00:01:45]} 30. g3 {[%clk 00:02:57]} Rc8 {[%clk
00:01:54]} 31. Bf1 {[%clk 00:03:01]} Nd5 {[%clk 00:01:45]} 32. Bb5 {[%clk
00:02:18]} Qe7 {[%clk 00:01:29]} 33. Bc4 {[%clk 00:02:21]} Qd7 {[%clk
00:01:15]} 34. Bb5 {[%clk 00:02:21]} Qe7 {[%clk 00:01:28]} 35. Qxc8 Bxc8 {[%clk
00:01:50]} 36. Rxe7+ Kxe7 {[%clk 00:02:00]} 37. Kf2 {[%clk 00:02:53]} Be6
{[%clk 00:02:18]} 38. Ke2 {[%clk 00:03:00]} Nc7 {[%clk 00:02:43]} 39. Bd3
{[%clk 00:03:16]} Bxa2 {[%clk 00:02:18]} 40. Kd2 {[%clk 00:03:06]} Bd5 {[%clk
00:02:37]} 41. f4 {[%clk 00:03:32]} Ne6 {[%clk 00:02:34]} 42. Be3 {[%clk
00:03:55]} Kd7 {[%clk 00:02:32]} 43. Bb5+ {[%clk 00:04:21]} Bc6 {[%clk
00:02:29]} 44. Bc4 {[%clk 00:04:30]} a5 {[%clk 00:02:44]} 45. Kc2 {[%clk
00:04:07]} Be4+ {[%clk 00:01:24]} 46. Kb3 {[%clk 00:04:25]} Bc6 {[%clk
00:01:44]} 47. Ka3 {[%clk 00:04:16]} Ke7 {[%clk 00:01:38]} 48. Bd3 {[%clk
00:04:14]} Nc7 {[%clk 00:00:53]} 49. c4 {[%clk 00:03:37]} Ne6 {[%clk 00:01:01]}
50. Bc2 {[%clk 00:02:44]} Kd7 {[%clk 00:01:16]} 51. Bd1 {[%clk 00:01:23]}
{[%emt 00:00:52]} h5 {[%clk 00:00:44]} {[%emt 00:01:03]} 52. Bc2 {[%clk
00:01:01]} {[%emt 00:00:51]} Kc7 {[%clk 00:00:57]} {[%emt 00:00:17]} 53. Bd2
{[%clk 00:01:12]} {[%emt 00:00:19]} Nxc5 {[%clk 00:00:44]} {[%emt 00:00:44]} 54.
Bxa5+ {[%clk 00:01:41]} {[%emt 00:00:02]} Kd7 {[%clk 00:00:37]} {[%emt
00:00:37]} 55. Kb4 {[%clk 00:01:14]} {[%emt 00:00:56]} Ne6 {[%clk 00:00:58]}
{[%emt 00:00:10]} 56. Bb6 {[%clk 00:01:08]} {[%emt 00:00:35]} h4 {[%clk
00:01:21]} {[%emt 00:00:08]} 57. Bd1 {[%clk 00:00:39]} {[%emt 00:00:59]} hxg3
{[%clk 00:01:46]} {[%emt 00:00:05]} 58. hxg3 {[%clk 00:01:08]} g5 {[%clk
00:01:30]} {[%emt 00:00:46]} 59. Be3 {[%clk 00:01:36]} {[%emt 00:00:02]} gxf4
{[%clk 00:01:36]} {[%emt 00:00:24]} 60. Bxf4 {[%clk 00:01:04]} {[%emt
00:01:01]} Nxf4 {[%clk 00:00:54]} {[%emt 00:01:13]} 61. gxf4 {[%clk 00:01:33]}
Be4 {[%clk 00:00:59]} {[%emt 00:01:36]} 62. Kc5 {[%clk 00:01:48]} {[%emt
00:00:15]} Kc7 {[%clk 00:01:16]} {[%emt 00:00:14]} 63. Ba4 {[%clk 00:01:48]}
{[%emt 00:01:09]} Bd3 {[%clk 00:01:16]} {[%emt 00:00:29]} 64. Kd4 {[%clk
00:01:21]} {[%emt 00:00:57]} Be4 {[%clk 00:01:34]} {[%emt 00:00:12]} 65. c5
{[%clk 00:00:40]} {[%emt 00:01:12]} Bf3 {[%clk 00:01:24]} {[%emt 00:00:39]} 66.
Ke5 {[%clk 00:01:03]} {[%emt 00:00:08]} Be4 {[%clk 00:01:39]} {[%emt 00:00:14]}
67. Be8 {[%clk 00:01:16]} {[%emt 00:00:17]} Bc2 {[%clk 00:01:20]} {[%emt
00:00:51]} 68. Bg6 {[%clk 00:01:17]} {[%emt 00:00:28]} Kc6 {[%clk 00:01:05]}
{[%emt 00:00:45]} 69. Bxf5 {[%clk 00:01:45]} {[%emt 00:00:02]} Bb3 {[%clk
00:01:23]} {[%emt 00:00:13]} 70. Kd4 {[%clk 00:02:11]} {[%emt 00:00:04]} Bf7
{[%clk 00:01:36]} {[%emt 00:00:16]} 71. Be4+ {[%clk 00:02:30]} {[%emt
00:00:10]} Kc7 {[%clk 00:01:53]} {[%emt 00:00:14]} 72. Ke5 {[%clk 00:02:55]}
{[%emt 00:00:05]} Bc4 {[%clk 00:02:01]} {[%emt 00:00:22]} 73. Bd5 {[%clk
00:02:39]} {[%emt 00:00:47]} Bd3 {[%clk 00:02:28]} {[%emt 00:00:03]} 74. f5
{[%clk 00:02:59]} {[%emt 00:00:10]} 1-0

[Event "Swedish Chess Championship 2019: Weekend 1"]
[Site "Stiga Sports Arena, Arenatorget 1, Eskilstuna, Sweden"]
[Date "2019.07.07"]
[Round "4.4"]
[White "Tolen, Michael"]
[Black "Johansson, Roland"]
[Result "1/2-1/2"]
[TimeControl "90 minutes + 30 seconds per move from move one"]
[WhiteFideId "1714376"]
[BlackFideId "1716123"]
[WhiteElo "2026"]
[BlackElo "2002"]

1. e4 {[%clk 01:30:52]} {[%emt 00:00:07]} c5 {[%clk 01:30:55]} {[%emt
00:00:06]} 2. d4 {[%clk 01:31:06]} {[%emt 00:00:16]} cxd4 {[%clk 01:31:19]}
{[%emt 00:00:06]} 3. c3 {[%clk 01:31:30]} {[%emt 00:00:05]} dxc3 {[%clk
01:26:30]} {[%emt 00:05:19]} 4. Nxc3 {[%clk 01:30:08]} {[%emt 00:01:52]} Nc6
{[%clk 01:26:54]} {[%emt 00:00:06]} 5. Nf3 {[%clk 01:30:23]} {[%emt 00:00:15]}
Nf6 {[%clk 01:21:30]} {[%emt 00:05:54]} 6. Bc4 {[%clk 01:30:35]} {[%emt
00:00:18]} e6 {[%clk 01:21:44]} {[%emt 00:00:16]} 7. Qe2 {[%clk 01:30:37]}
{[%emt 00:00:29]} d6 {[%clk 01:19:23]} {[%emt 00:02:50]} 8. O-O {[%clk
01:28:32]} {[%emt 00:02:35]} a6 {[%clk 01:19:19]} {[%emt 00:00:35]} 9. Rd1
{[%clk 01:26:23]} {[%emt 00:02:39]} Qc7 {[%clk 01:17:12]} {[%emt 00:02:37]} 10.
Bf4 {[%clk 01:21:52]} {[%emt 00:05:00]} Be7 {[%clk 01:12:44]} {[%emt 00:04:59]}
11. Rac1 {[%clk 01:14:21]} {[%emt 00:08:01]} O-O {[%clk 01:11:12]} {[%emt
00:02:01]} 12. h3 {[%clk 01:13:30]} {[%emt 00:01:21]} Rd8 {[%clk 01:05:51]}
{[%emt 00:05:52]} 13. a4 {[%clk 01:12:20]} {[%emt 00:01:41]} Qa5 {[%clk
01:00:27]} {[%emt 00:05:53]} 14. g4 {[%clk 01:09:43]} {[%emt 00:03:07]} h6
{[%clk 00:53:14]} {[%emt 00:07:43]} 15. Bd2 {[%clk 01:03:10]} {[%emt 00:07:03]}
Qb6 {[%clk 00:46:32]} {[%emt 00:07:12]} 16. Be3 {[%clk 01:02:55]} {[%emt
00:00:46]} Qa5 {[%clk 00:46:22]} {[%emt 00:00:40]} 17. Bd2 {[%clk 01:00:21]}
{[%emt 00:03:04]} Qb6 {[%clk 00:45:13]} {[%emt 00:01:39]} 18. Be3 {[%clk
01:00:38]} {[%emt 00:00:13]} Qa5 {[%clk 00:45:32]} {[%emt 00:00:10]} 1/2-1/2